[Event "*** Titled Tuesday Blitz"]
[Site "Chess.com"]
[Date "2020.04.21"]
[Round "9"]
[White "AliKa2810"]
[Black "Shaman91"]
[Result "0-1"]
[WhiteElo "2597"]
[BlackElo "2833"]
[TimeControl "180+1"]
[EndTime "11:50:20 PDT"]
[Termination "Shaman91 won by resignation"]

1. d4 {[%clk 0:03:00.9]} 1... d6 {[%clk 0:02:58.3]} 2. e4 {[%clk 0:02:59.9]}
2... Nf6 {[%clk 0:02:58.2]} 3. Nc3 {[%clk 0:03:00]} 3... e5 {[%clk 0:02:58.6]}
4. Nf3 {[%clk 0:02:59.9]} 4... Nbd7 {[%clk 0:02:58.4]} 5. h3 {[%clk 0:03:00.5]}
5... Be7 {[%clk 0:02:58.4]} 6. g4 {[%clk 0:03:00.5]} 6... O-O {[%clk 0:02:56.7]}
7. g5 {[%clk 0:03:00.7]} 7... Nh5 {[%clk 0:02:55.2]} 8. Be3 {[%clk 0:02:58.8]}
8... c6 {[%clk 0:02:54.5]} 9. dxe5 {[%clk 0:02:56.4]} 9... dxe5 {[%clk
0:02:52.8]} 10. Qd2 {[%clk 0:02:44.2]} 10... b5 {[%clk 0:02:45.4]} 11. O-O-O
{[%clk 0:02:43.1]} 11... Qa5 {[%clk 0:02:45.3]} 12. Kb1 {[%clk 0:02:37.9]} 12...
b4 {[%clk 0:02:45.4]} 13. Ne2 {[%clk 0:02:36.7]} 13... Nc5 {[%clk 0:02:45.4]}
14. Nxe5 {[%clk 0:02:20.4]} 14... Be6 {[%clk 0:02:27.8]} 15. Nc1 {[%clk
0:02:12]} 15... Nxe4 {[%clk 0:02:27.5]} 16. Qd4 {[%clk 0:02:04.3]} 16... Rad8
{[%clk 0:02:09.1]} 17. Qxe4 {[%clk 0:01:59.2]} 17... Rxd1 {[%clk 0:02:06.9]} 18.
Bc4 {[%clk 0:01:56.7]} 18... Rxh1 {[%clk 0:02:04.2]} 19. Bxe6 {[%clk 0:01:42.9]}
19... Rxc1+ {[%clk 0:01:43.8]} 20. Kxc1 {[%clk 0:01:35.8]} 20... fxe6 {[%clk
0:01:43.2]} 21. Nxc6 {[%clk 0:01:35]} 21... Qxa2 {[%clk 0:01:19.5]} 22. Nxe7+
{[%clk 0:01:34.1]} 22... Kh8 {[%clk 0:01:12.8]} 23. Bd4 {[%clk 0:01:15.9]} 23...
b3 {[%clk 0:00:51.8]} 24. Ng6+ {[%clk 0:00:54.2]} 24... hxg6 {[%clk 0:00:45.7]}
25. Qxg6 {[%clk 0:00:54.7]} 25... bxc2 {[%clk 0:00:38.2]} 26. Qxh5+ {[%clk
0:00:45.3]} 26... Kg8 {[%clk 0:00:35.8]} 27. Kxc2 {[%clk 0:00:44.4]} 27... Qc4+
{[%clk 0:00:35.3]} 28. Bc3 {[%clk 0:00:43.6]} 28... Rxf2+ {[%clk 0:00:34.5]} 29.
Kb1 {[%clk 0:00:42.4]} 29... Qd3+ {[%clk 0:00:21.1]} 30. Ka2 {[%clk 0:00:41.8]}
30... Qd5+ {[%clk 0:00:20.1]} 31. Ka3 {[%clk 0:00:39.9]} 31... Rf7 {[%clk
0:00:14]} 32. Qg6 {[%clk 0:00:31.8]} 32... a5 {[%clk 0:00:11.9]} 33. Bxg7 {[%clk
0:00:16.3]} 33... Qf5 {[%clk 0:00:11.7]} 34. Qxf5 {[%clk 0:00:14]} 34... exf5
{[%clk 0:00:12.6]} 35. Bd4 {[%clk 0:00:12.7]} 35... f4 {[%clk 0:00:12.9]} 36. h4
{[%clk 0:00:08.7]} 36... f3 {[%clk 0:00:12.5]} 37. Bf2 {[%clk 0:00:09.3]} 37...
Re7 {[%clk 0:00:12.6]} 38. h5 {[%clk 0:00:07.8]} 38... Re2 {[%clk 0:00:12.4]}
39. Bd4 {[%clk 0:00:06.7]} 39... f2 {[%clk 0:00:12.7]} 40. Bxf2 {[%clk
0:00:06.3]} 40... Rxf2 {[%clk 0:00:13.6]} 41. b3 {[%clk 0:00:05.8]} 41... Rf4
{[%clk 0:00:13.2]} 42. g6 {[%clk 0:00:05.6]} 42... Kg7 {[%clk 0:00:13]} 43. Kb2
{[%clk 0:00:04.5]} 43... Rg4 {[%clk 0:00:12.2]} 44. Ka3 {[%clk 0:00:04.3]} 44...
Kh6 {[%clk 0:00:12.4]} 45. Ka2 {[%clk 0:00:01.6]} 45... Kxh5 {[%clk 0:00:12.2]}
46. g7 {[%clk 0:00:01.6]} 46... Rxg7 {[%clk 0:00:12.2]} 47. b4 {[%clk
0:00:02.2]} 47... axb4 {[%clk 0:00:11.2]} 48. Kb3 {[%clk 0:00:02.2]} 48... Rg4
{[%clk 0:00:12.1]} 49. Ka4 {[%clk 0:00:01.9]} 49... Kg5 {[%clk 0:00:13]} 0-1

[Event "*** Titled Tuesday Blitz"]
[Site "Chess.com"]
[Date "2020.04.21"]
[Round "9"]
[White "afgano29"]
[Black "Fh2411"]
[Result "1-0"]
[WhiteElo "2655"]
[BlackElo "2479"]
[TimeControl "180+1"]
[EndTime "11:50:21 PDT"]
[Termination "afgano29 won on time"]

1. e4 {[%clk 0:03:00.9]} 1... c5 {[%clk 0:02:59.3]} 2. Nf3 {[%clk 0:02:59.7]}
2... e6 {[%clk 0:02:59.7]} 3. d4 {[%clk 0:02:59]} 3... cxd4 {[%clk 0:03:00.6]}
4. Nxd4 {[%clk 0:02:59.8]} 4... a6 {[%clk 0:03:00.9]} 5. Bd3 {[%clk 0:02:58.7]}
5... Bc5 {[%clk 0:03:00.1]} 6. Nb3 {[%clk 0:02:59]} 6... Be7 {[%clk 0:03:00.7]}
7. Qg4 {[%clk 0:02:58.6]} 7... g6 {[%clk 0:03:00.6]} 8. Nc3 {[%clk 0:02:57.4]}
8... d6 {[%clk 0:02:59.8]} 9. Qg3 {[%clk 0:02:54.6]} 9... Nc6 {[%clk 0:02:54.5]}
10. h4 {[%clk 0:02:53.1]} 10... Nf6 {[%clk 0:02:52.3]} 11. Bh6 {[%clk
0:02:45.1]} 11... Nh5 {[%clk 0:02:45.2]} 12. Qh3 {[%clk 0:02:30.4]} 12... Bf8
{[%clk 0:02:19.6]} 13. Bxf8 {[%clk 0:02:28]} 13... Kxf8 {[%clk 0:02:18.3]} 14.
O-O-O {[%clk 0:02:26.5]} 14... Qf6 {[%clk 0:02:06.2]} 15. Qe3 {[%clk 0:02:07.2]}
15... Qf4 {[%clk 0:01:45.6]} 16. Qxf4 {[%clk 0:02:05.6]} 16... Nxf4 {[%clk
0:01:46.5]} 17. g3 {[%clk 0:02:06.2]} 17... Nxd3+ {[%clk 0:01:36.1]} 18. Rxd3
{[%clk 0:02:05.3]} 18... Ke7 {[%clk 0:01:36.8]} 19. h5 {[%clk 0:01:52.6]} 19...
Rd8 {[%clk 0:01:21.2]} 20. f4 {[%clk 0:01:51.2]} 20... Bd7 {[%clk 0:01:17.6]}
21. Nd2 {[%clk 0:01:43.2]} 21... b5 {[%clk 0:01:15.6]} 22. Nf3 {[%clk
0:01:40.3]} 22... Be8 {[%clk 0:01:11.2]} 23. h6 {[%clk 0:01:38.6]} 23... f6
{[%clk 0:01:07.4]} 24. Re1 {[%clk 0:01:37.7]} 24... b4 {[%clk 0:01:00.3]} 25.
Ne2 {[%clk 0:01:31]} 25... e5 {[%clk 0:00:57.7]} 26. g4 {[%clk 0:01:24.6]} 26...
Bf7 {[%clk 0:00:41.5]} 27. g5 {[%clk 0:01:19]} 27... Bc4 {[%clk 0:00:31.8]} 28.
gxf6+ {[%clk 0:01:14.8]} 28... Kxf6 {[%clk 0:00:32.7]} 29. fxe5+ {[%clk
0:01:05.7]} 29... dxe5 {[%clk 0:00:21.4]} 30. Rxd8 {[%clk 0:01:04.4]} 30... Rxd8
{[%clk 0:00:22.3]} 31. Ng3 {[%clk 0:00:58.8]} 31... a5 {[%clk 0:00:17]} 32. b3
{[%clk 0:00:58.6]} 32... Bg8 {[%clk 0:00:15.5]} 33. Rf1 {[%clk 0:00:58.3]} 33...
Ke7 {[%clk 0:00:15.4]} 34. Nd2 {[%clk 0:00:36]} 34... a4 {[%clk 0:00:14.8]} 35.
Nh1 {[%clk 0:00:27.2]} 35... Ra8 {[%clk 0:00:13.3]} 36. Nf2 {[%clk 0:00:24.1]}
36... Nd4 {[%clk 0:00:12.3]} 37. Nd3 {[%clk 0:00:20.3]} 37... axb3 {[%clk
0:00:12.4]} 38. axb3 {[%clk 0:00:21]} 38... Ra1+ {[%clk 0:00:08]} 39. Kb2 {[%clk
0:00:21.3]} 39... Rxf1 {[%clk 0:00:03.6]} 40. Nxf1 {[%clk 0:00:22.2]} 40... Nc6
{[%clk 0:00:04.2]} 41. Ne3 {[%clk 0:00:22]} 41... g5 {[%clk 0:00:03.4]} 42. Ng4
{[%clk 0:00:21.7]} 42... Ke6 {[%clk 0:00:02.7]} 43. Kc1 {[%clk 0:00:21.6]} 43...
Bf7 {[%clk 0:00:03.1]} 44. Kd2 {[%clk 0:00:21.7]} 44... Bh5 {[%clk 0:00:03.7]}
45. Ne3 {[%clk 0:00:22.3]} 45... Bf3 {[%clk 0:00:02.3]} 46. Nf2 {[%clk
0:00:20.6]} 46... Kf6 {[%clk 0:00:02.7]} 47. Neg4+ {[%clk 0:00:17.1]} 47... Kg6
{[%clk 0:00:01.9]} 48. Ke3 {[%clk 0:00:17.5]} 1-0

[Event "*** Titled Tuesday Blitz"]
[Site "Chess.com"]
[Date "2020.04.21"]
[Round "9"]
[White "NTBT_DHS"]
[Black "Lysiak_Poltorak"]
[Result "1-0"]
[WhiteElo "2622"]
[BlackElo "2361"]
[TimeControl "180+1"]
[EndTime "11:50:21 PDT"]
[Termination "NTBT_DHS won by resignation"]

1. d4 {[%clk 0:03:00.9]} 1... e6 {[%clk 0:02:59.4]} 2. c4 {[%clk 0:03:01]} 2...
f5 {[%clk 0:02:59.1]} 3. g3 {[%clk 0:03:00.8]} 3... Nf6 {[%clk 0:02:59.4]} 4.
Bg2 {[%clk 0:03:01.2]} 4... Be7 {[%clk 0:02:59.9]} 5. Nf3 {[%clk 0:03:01.1]}
5... O-O {[%clk 0:03:00.3]} 6. O-O {[%clk 0:03:01.6]} 6... d6 {[%clk 0:03:00.3]}
7. Nc3 {[%clk 0:03:01.1]} 7... Ne4 {[%clk 0:03:00.8]} 8. Bd2 {[%clk 0:03:00.5]}
8... Nc6 {[%clk 0:02:50.9]} 9. Qc2 {[%clk 0:02:58.2]} 9... Nxd2 {[%clk
0:02:43.3]} 10. Qxd2 {[%clk 0:02:59.1]} 10... e5 {[%clk 0:02:39]} 11. dxe5
{[%clk 0:02:52.8]} 11... dxe5 {[%clk 0:02:38.4]} 12. Qd5+ {[%clk 0:02:53.1]}
12... Rf7 {[%clk 0:02:06.7]} 13. Rad1 {[%clk 0:02:44.2]} 13... e4 {[%clk
0:01:59.4]} 14. Qxd8+ {[%clk 0:02:38.4]} 14... Bxd8 {[%clk 0:01:54.8]} 15. Ne5
{[%clk 0:02:27.2]} 15... Nxe5 {[%clk 0:01:54.5]} 16. Rxd8+ {[%clk 0:02:26.9]}
16... Rf8 {[%clk 0:01:55]} 17. Rd5 {[%clk 0:02:15.5]} 17... Nxc4 {[%clk
0:01:51.5]} 18. Rc5 {[%clk 0:02:15.8]} 18... Be6 {[%clk 0:01:48]} 19. Rxc7
{[%clk 0:02:02.7]} 19... Rfc8 {[%clk 0:01:47.9]} 20. Rxb7 {[%clk 0:01:52.3]}
20... Nxb2 {[%clk 0:01:08.3]} 21. Nxe4 {[%clk 0:01:43]} 21... fxe4 {[%clk
0:00:49.9]} 22. Rxb2 {[%clk 0:01:30.1]} 22... Rc4 {[%clk 0:00:49.8]} 23. Rfb1
{[%clk 0:01:06.9]} 23... Ra4 {[%clk 0:00:47.9]} 24. Rb4 {[%clk 0:00:57.2]} 24...
Rxa2 {[%clk 0:00:45.4]} 25. Rxe4 {[%clk 0:00:54.4]} 25... Bf5 {[%clk 0:00:35.8]}
26. Reb4 {[%clk 0:00:44.3]} 26... Rd8 {[%clk 0:00:29.9]} 27. e4 {[%clk
0:00:41.3]} 27... Be6 {[%clk 0:00:28.2]} 28. Rb8 {[%clk 0:00:36.8]} 28... Rxb8
{[%clk 0:00:26]} 29. Rxb8+ {[%clk 0:00:37.7]} 29... Kf7 {[%clk 0:00:24.4]} 30.
Rb7+ {[%clk 0:00:37.3]} 30... Kf6 {[%clk 0:00:23.1]} 31. Rb1 {[%clk 0:00:38]}
31... a5 {[%clk 0:00:22.4]} 32. f4 {[%clk 0:00:38.3]} 32... Bc4 {[%clk
0:00:19.3]} 33. e5+ {[%clk 0:00:37.1]} 33... Ke6 {[%clk 0:00:19.4]} 34. Be4
{[%clk 0:00:32.3]} 34... g6 {[%clk 0:00:14.7]} 35. Rb6+ {[%clk 0:00:31.7]} 35...
Ke7 {[%clk 0:00:13.4]} 36. g4 {[%clk 0:00:28.3]} 36... a4 {[%clk 0:00:12.6]} 37.
Rb7+ {[%clk 0:00:24.4]} 37... Kd8 {[%clk 0:00:12.3]} 38. f5 {[%clk 0:00:19]}
38... gxf5 {[%clk 0:00:11.9]} 39. gxf5 {[%clk 0:00:19.9]} 39... Re2 {[%clk
0:00:12.1]} 40. Bc6 {[%clk 0:00:12.9]} 40... Rxe5 {[%clk 0:00:12]} 41. Bxa4
{[%clk 0:00:12.8]} 41... Rxf5 {[%clk 0:00:12]} 42. Rxh7 {[%clk 0:00:13.1]} 42...
Rg5+ {[%clk 0:00:11.8]} 43. Kf2 {[%clk 0:00:12.1]} 43... Bb5 {[%clk 0:00:11.8]}
44. Bd1 {[%clk 0:00:06]} 44... Ke8 {[%clk 0:00:11.5]} 45. h4 {[%clk 0:00:05.2]}
45... Rg4 {[%clk 0:00:09.2]} 46. Bxg4 {[%clk 0:00:05]} 1-0

[Event "*** Titled Tuesday Blitz"]
[Site "Chess.com"]
[Date "2020.04.21"]
[Round "9"]
[White "ChessQueen"]
[Black "DanielDardha2005"]
[Result "0-1"]
[WhiteElo "2748"]
[BlackElo "2618"]
[TimeControl "180+1"]
[EndTime "11:50:28 PDT"]
[Termination "DanielDardha2005 won by checkmate"]

1. e4 {[%clk 0:03:00.9]} 1... c5 {[%clk 0:02:21.8]} 2. c3 {[%clk 0:03:00.1]}
2... Nf6 {[%clk 0:02:21.5]} 3. e5 {[%clk 0:03:00.3]} 3... Nd5 {[%clk 0:02:21.9]}
4. Nf3 {[%clk 0:03:00.9]} 4... Nc6 {[%clk 0:02:21.2]} 5. d4 {[%clk 0:03:01.5]}
5... cxd4 {[%clk 0:02:21.2]} 6. cxd4 {[%clk 0:03:01.9]} 6... d6 {[%clk
0:02:21.6]} 7. Bc4 {[%clk 0:03:02.4]} 7... e6 {[%clk 0:02:20.1]} 8. O-O {[%clk
0:03:01]} 8... Be7 {[%clk 0:02:19.5]} 9. Qe2 {[%clk 0:03:01.5]} 9... O-O {[%clk
0:02:18.9]} 10. Nc3 {[%clk 0:03:02.1]} 10... Nxc3 {[%clk 0:02:18.2]} 11. bxc3
{[%clk 0:03:03]} 11... dxe5 {[%clk 0:02:18.5]} 12. dxe5 {[%clk 0:03:01.3]} 12...
Qc7 {[%clk 0:02:16.3]} 13. Qe4 {[%clk 0:02:59.1]} 13... b6 {[%clk 0:02:09.9]}
14. Bd3 {[%clk 0:02:58.5]} 14... g6 {[%clk 0:02:10.3]} 15. Re1 {[%clk
0:02:55.8]} 15... Bb7 {[%clk 0:02:08.7]} 16. Qg4 {[%clk 0:02:55.9]} 16... Rad8
{[%clk 0:02:07.6]} 17. Bf1 {[%clk 0:02:40.9]} 17... Rfe8 {[%clk 0:01:53.9]} 18.
Bg5 {[%clk 0:02:35.9]} 18... Bxg5 {[%clk 0:01:46.2]} 19. Nxg5 {[%clk 0:02:27.2]}
19... h6 {[%clk 0:01:45.3]} 20. Nf3 {[%clk 0:02:20.3]} 20... Na5 {[%clk
0:01:44.6]} 21. Nh4 {[%clk 0:02:03]} 21... Qe7 {[%clk 0:01:30.8]} 22. f4 {[%clk
0:01:53.2]} 22... Kh7 {[%clk 0:01:16.6]} 23. Kh1 {[%clk 0:01:51.1]} 23... Rd2
{[%clk 0:01:15.1]} 24. Nf3 {[%clk 0:01:40.8]} 24... Bxf3 {[%clk 0:01:14.1]} 25.
Qxf3 {[%clk 0:01:40.9]} 25... Red8 {[%clk 0:01:14.1]} 26. Red1 {[%clk
0:01:26.8]} 26... Qc5 {[%clk 0:01:10.3]} 27. h3 {[%clk 0:01:16.8]} 27... Rxd1
{[%clk 0:01:05]} 28. Rxd1 {[%clk 0:01:16.7]} 28... Rxd1 {[%clk 0:01:05.9]} 29.
Qxd1 {[%clk 0:01:17.1]} 29... Qxc3 {[%clk 0:01:06.6]} 30. Qd7 {[%clk 0:01:14.6]}
30... Kg7 {[%clk 0:01:05.6]} 31. Qxa7 {[%clk 0:00:59.8]} 31... Qc1 {[%clk
0:01:01.9]} 32. Qa6 {[%clk 0:00:58.5]} 32... Qxf4 {[%clk 0:00:59.7]} 33. Qb5
{[%clk 0:00:58.7]} 33... Nb7 {[%clk 0:00:52.4]} 34. a4 {[%clk 0:00:50.9]} 34...
Nc5 {[%clk 0:00:41.7]} 35. Bc4 {[%clk 0:00:40.7]} 35... Ne4 {[%clk 0:00:38.9]}
36. Bd3 {[%clk 0:00:17.9]} 36... Nf2+ {[%clk 0:00:29.5]} 37. Kg1 {[%clk
0:00:18.1]} 37... Qe3 {[%clk 0:00:29.3]} 38. Bf1 {[%clk 0:00:18.2]} 38... Nxh3+
{[%clk 0:00:26.4]} 39. Kh2 {[%clk 0:00:18.7]} 39... Ng5 {[%clk 0:00:21.9]} 40.
a5 {[%clk 0:00:13.2]} 40... bxa5 {[%clk 0:00:20.4]} 41. Qxa5 {[%clk 0:00:13.6]}
41... Ne4 {[%clk 0:00:20.5]} 42. Qb5 {[%clk 0:00:12.2]} 42... Qf4+ {[%clk
0:00:18.8]} 43. Kg1 {[%clk 0:00:12.5]} 43... Ng3 {[%clk 0:00:16.6]} 44. Bd3
{[%clk 0:00:11.8]} 44... Qd4+ {[%clk 0:00:15.8]} 45. Kh2 {[%clk 0:00:11.9]}
45... Qh4+ {[%clk 0:00:15.5]} 46. Kg1 {[%clk 0:00:12]} 46... Qf4 {[%clk
0:00:15.4]} 47. Bc4 {[%clk 0:00:10.3]} 47... h5 {[%clk 0:00:13.6]} 48. Bd3
{[%clk 0:00:10.5]} 48... h4 {[%clk 0:00:13.1]} 49. Qc5 {[%clk 0:00:10.8]} 49...
Qd2 {[%clk 0:00:10.5]} 50. Qc4 {[%clk 0:00:09.5]} 50... Qe1+ {[%clk 0:00:10]}
51. Kh2 {[%clk 0:00:09.7]} 51... Qh1# {[%clk 0:00:09.9]} 0-1

[Event "*** Titled Tuesday Blitz"]
[Site "Chess.com"]
[Date "2020.04.21"]
[Round "9"]
[White "gahryman"]
[Black "wadsy27"]
[Result "0-1"]
[WhiteElo "2663"]
[BlackElo "2516"]
[TimeControl "180+1"]
[EndTime "11:50:28 PDT"]
[Termination "wadsy27 won on time"]

1. d4 {[%clk 0:03:00.9]} 1... Nf6 {[%clk 0:02:58.9]} 2. Bf4 {[%clk 0:02:59.1]}
2... c5 {[%clk 0:02:58.2]} 3. d5 {[%clk 0:02:58.8]} 3... b5 {[%clk 0:02:54.2]}
4. f3 {[%clk 0:02:27.9]} 4... d6 {[%clk 0:02:30.3]} 5. e4 {[%clk 0:02:27.4]}
5... Qb6 {[%clk 0:02:23.6]} 6. Nd2 {[%clk 0:02:22.3]} 6... Ba6 {[%clk
0:02:18.4]} 7. Nh3 {[%clk 0:02:18.2]} 7... Nbd7 {[%clk 0:02:16.8]} 8. Nf2 {[%clk
0:02:16]} 8... g6 {[%clk 0:02:12.4]} 9. a4 {[%clk 0:02:11.6]} 9... b4 {[%clk
0:02:08]} 10. Bxa6 {[%clk 0:02:09.8]} 10... Qxa6 {[%clk 0:02:07.9]} 11. Qe2
{[%clk 0:02:10.7]} 11... Qxe2+ {[%clk 0:02:04.8]} 12. Kxe2 {[%clk 0:02:11.6]}
12... Bg7 {[%clk 0:02:02.9]} 13. g4 {[%clk 0:02:05]} 13... h5 {[%clk 0:01:50]}
14. h3 {[%clk 0:02:02.5]} 14... O-O-O {[%clk 0:01:44.1]} 15. a5 {[%clk
0:01:55.3]} 15... hxg4 {[%clk 0:01:43.9]} 16. hxg4 {[%clk 0:01:54.8]} 16... Rxh1
{[%clk 0:01:43.4]} 17. Rxh1 {[%clk 0:01:55.4]} 17... Rh8 {[%clk 0:01:43]} 18.
Rxh8+ {[%clk 0:01:54.3]} 18... Bxh8 {[%clk 0:01:43.9]} 19. Nc4 {[%clk
0:01:54.9]} 19... Kb7 {[%clk 0:01:42.1]} 20. b3 {[%clk 0:01:39.7]} 20... Ka6
{[%clk 0:01:41.3]} 21. Nd3 {[%clk 0:01:34.5]} 21... Ne8 {[%clk 0:01:35.2]} 22.
Bg5 {[%clk 0:01:25.2]} 22... f6 {[%clk 0:01:24.7]} 23. Be3 {[%clk 0:01:18.6]}
23... Nc7 {[%clk 0:01:23.4]} 24. f4 {[%clk 0:01:16.4]} 24... Nb5 {[%clk
0:01:21.1]} 25. Kf3 {[%clk 0:01:15.9]} 25... Na3 {[%clk 0:01:10.2]} 26. e5
{[%clk 0:00:53.7]} 26... Nxc4 {[%clk 0:01:05.9]} 27. e6 {[%clk 0:00:47.4]} 27...
Ndb6 {[%clk 0:00:46.9]} 28. axb6 {[%clk 0:00:41.9]} 28... Nxb6 {[%clk
0:00:46.6]} 29. Ke4 {[%clk 0:00:38.2]} 29... f5+ {[%clk 0:00:44.8]} 30. gxf5
{[%clk 0:00:38]} 30... gxf5+ {[%clk 0:00:45.7]} 31. Kxf5 {[%clk 0:00:38.9]}
31... Nxd5 {[%clk 0:00:46]} 32. Bd2 {[%clk 0:00:37.5]} 32... Kb5 {[%clk
0:00:43.2]} 33. Kg6 {[%clk 0:00:37.1]} 33... c4 {[%clk 0:00:36]} 34. bxc4+
{[%clk 0:00:33.5]} 34... Kxc4 {[%clk 0:00:36.9]} 35. Kf7 {[%clk 0:00:33.3]}
35... a5 {[%clk 0:00:35.4]} 36. f5 {[%clk 0:00:32.4]} 36... Bf6 {[%clk
0:00:34.3]} 37. Nf4 {[%clk 0:00:25]} 37... Nxf4 {[%clk 0:00:22.3]} 38. Bxf4
{[%clk 0:00:25.9]} 38... a4 {[%clk 0:00:15.7]} 39. Bxd6 {[%clk 0:00:23.6]} 39...
a3 {[%clk 0:00:15.9]} 40. Bxe7 {[%clk 0:00:18.8]} 40... Bxe7 {[%clk 0:00:15.5]}
41. Kxe7 {[%clk 0:00:06.9]} 41... a2 {[%clk 0:00:15.8]} 42. f6 {[%clk 0:00:07]}
42... a1=Q {[%clk 0:00:15.9]} 43. f7 {[%clk 0:00:07.4]} 43... Qa7+ {[%clk
0:00:13.3]} 44. Kf6 {[%clk 0:00:07.4]} 44... Qf2+ {[%clk 0:00:12.2]} 45. Ke7
{[%clk 0:00:07.7]} 45... Qc5+ {[%clk 0:00:11.5]} 46. Kf6 {[%clk 0:00:05.6]}
46... Kd5 {[%clk 0:00:09.9]} 47. Kg7 {[%clk 0:00:02.1]} 47... Qe7 {[%clk
0:00:09.5]} 0-1

[Event "*** Titled Tuesday Blitz"]
[Site "Chess.com"]
[Date "2020.04.21"]
[Round "9"]
[White "chenxiaoyuer"]
[Black "canary2016"]
[Result "1-0"]
[WhiteElo "2125"]
[BlackElo "1858"]
[TimeControl "180+1"]
[EndTime "11:50:28 PDT"]
[Termination "chenxiaoyuer won by resignation"]

1. e4 {[%clk 0:03:00.9]} 1... c6 {[%clk 0:02:59.3]} 2. d4 {[%clk 0:03:00.1]}
2... d5 {[%clk 0:02:58.2]} 3. Nc3 {[%clk 0:02:59.8]} 3... dxe4 {[%clk
0:02:57.8]} 4. Nxe4 {[%clk 0:03:00.7]} 4... Nf6 {[%clk 0:02:58]} 5. Ng3 {[%clk
0:02:59.9]} 5... Nbd7 {[%clk 0:02:57.4]} 6. Nf3 {[%clk 0:02:59.3]} 6... e5
{[%clk 0:02:56]} 7. dxe5 {[%clk 0:02:49.6]} 7... Qa5+ {[%clk 0:02:54.8]} 8. Bd2
{[%clk 0:02:47.1]} 8... Qb6 {[%clk 0:02:24.6]} 9. exf6 {[%clk 0:02:35.2]} 9...
Nxf6 {[%clk 0:02:24.4]} 10. Bd3 {[%clk 0:02:09.3]} 10... Bc5 {[%clk 0:02:23.3]}
11. O-O {[%clk 0:02:08.2]} 11... O-O {[%clk 0:02:22.1]} 12. b3 {[%clk
0:01:58.6]} 12... Ng4 {[%clk 0:02:20.9]} 13. Qe2 {[%clk 0:01:46.3]} 13... Bd7
{[%clk 0:02:18.3]} 14. Bc3 {[%clk 0:01:31.1]} 14... Rfe8 {[%clk 0:02:16.6]} 15.
Qd2 {[%clk 0:01:30.3]} 15... Rad8 {[%clk 0:02:08]} 16. h3 {[%clk 0:01:23]} 16...
Nxf2 {[%clk 0:01:46.4]} 17. Rxf2 {[%clk 0:01:17.2]} 17... Be3 {[%clk 0:01:46.2]}
18. Bd4 {[%clk 0:00:53.9]} 18... Bxd4 {[%clk 0:01:38]} 19. Nxd4 {[%clk
0:00:51.3]} 19... Bxh3 {[%clk 0:01:14.7]} 20. Nf3 {[%clk 0:00:28.8]} 20... Bg4
{[%clk 0:01:05.3]} 21. Kh2 {[%clk 0:00:18.7]} 21... Qc5 {[%clk 0:01:01.3]} 22.
Ng1 {[%clk 0:00:16.1]} 22... Qd6 {[%clk 0:00:57.5]} 23. Nh3 {[%clk 0:00:14.6]}
23... Bxh3 {[%clk 0:00:51.3]} 24. gxh3 {[%clk 0:00:13.8]} 24... Re6 {[%clk
0:00:47.2]} 25. Rg1 {[%clk 0:00:13.3]} 25... Rde8 {[%clk 0:00:45.2]} 26. Rfg2
{[%clk 0:00:13.2]} 26... Rh6 {[%clk 0:00:42.3]} 27. Qf2 {[%clk 0:00:11.6]} 27...
Ree6 {[%clk 0:00:31.3]} 28. Qf3 {[%clk 0:00:10.9]} 28... Ref6 {[%clk 0:00:24.7]}
29. Qg4 {[%clk 0:00:10.1]} 29... Rf4 {[%clk 0:00:19.5]} 30. Qc8+ {[%clk
0:00:09.4]} 30... Qf8 {[%clk 0:00:16.5]} 31. Qxf8+ {[%clk 0:00:09.9]} 31... Kxf8
{[%clk 0:00:16.6]} 32. Ne2 {[%clk 0:00:09.3]} 32... Rfh4 {[%clk 0:00:13.7]} 33.
Rg3 {[%clk 0:00:09.3]} 33... g5 {[%clk 0:00:11.1]} 34. Rf1 {[%clk 0:00:08.2]}
34... g4 {[%clk 0:00:10]} 35. Nf4 {[%clk 0:00:07.6]} 35... gxh3 {[%clk
0:00:09.3]} 36. Rxh3 {[%clk 0:00:07.8]} 36... Rxh3+ {[%clk 0:00:05.1]} 37. Nxh3
{[%clk 0:00:07.9]} 37... f6 {[%clk 0:00:04.6]} 38. Kg3 {[%clk 0:00:07.2]} 38...
Kf7 {[%clk 0:00:04.8]} 39. Nf4 {[%clk 0:00:06.3]} 39... b6 {[%clk 0:00:04.9]}
40. Rf2 {[%clk 0:00:06.5]} 40... c5 {[%clk 0:00:05.1]} 41. Rh2 {[%clk
0:00:06.8]} 41... Rxh2 {[%clk 0:00:03.6]} 42. Kxh2 {[%clk 0:00:07.7]} 42... h6
{[%clk 0:00:03.3]} 43. Bf5 {[%clk 0:00:07.4]} 43... Ke7 {[%clk 0:00:03.1]} 44.
Kg3 {[%clk 0:00:07]} 44... Kd6 {[%clk 0:00:03.2]} 45. Ng6 {[%clk 0:00:07.1]}
45... Kd5 {[%clk 0:00:02.7]} 46. Kf3 {[%clk 0:00:07.2]} 46... Kd4 {[%clk
0:00:02.9]} 47. Ke2 {[%clk 0:00:07.3]} 47... Kc3 {[%clk 0:00:03.1]} 48. Kd1
{[%clk 0:00:06.6]} 48... Kb2 {[%clk 0:00:03.1]} 49. a4 {[%clk 0:00:06.3]} 49...
Kc3 {[%clk 0:00:03.3]} 50. Nf4 {[%clk 0:00:06.1]} 50... a6 {[%clk 0:00:03.5]}
51. Nd5+ {[%clk 0:00:05.7]} 51... Kd4 {[%clk 0:00:03.6]} 52. Nxb6 {[%clk
0:00:05.7]} 52... c4 {[%clk 0:00:03.7]} 53. Nxc4 {[%clk 0:00:05.6]} 1-0